bitfinex/quotes_BTCUSD_20240727
["timestamp","ask_amount","ask_price","bid_price","bid_amount"]
[1722087159843,0.00184,68991.0,68990.0,1.427919]
[1722087160043,0.00184,68991.0,68990.0,1.416919]
[1722087160450,0.00284,68991.0,68990.0,1.428919]
[1722087160655,0.00084,68991.0,68990.0,1.430919]
[1722087161107,0.00084,68991.0,68990.0,1.416919]
[1722087161527,0.00084,68991.0,68990.0,1.430919]
[1722087161902,0.00084,68991.0,68990.0,1.416919]
[1722087162306,0.00084,68991.0,68990.0,1.444919]
[1722087162703,0.00084,68991.0,68990.0,1.430919]
[1722087162930,0.00084,68991.0,68990.0,1.444919]
[1722087164611,0.002,69013.0,69012.0,0.568806]
[1722087164612,0.0015542,69013.0,69012.0,0.568806]
[1722087164880,0.00084,69020.0,69019.0,0.144887]
[1722087165079,0.00084,69020.0,69017.0,0.144891]
[1722087165240,0.00084,69020.0,69019.0,0.07512979]
[1722087166030,0.00084,69020.0,69019.0,0.08412979]
[1722087166227,0.00084,69020.0,69019.0,0.07512979]
[1722087166841,0.00084,69020.0,69019.0,0.012]
[1722087167047,0.06714,69020.0,69019.0,0.012]
[1722087168074,0.06514,69020.0,69019.0,0.012]
[1722087168507,0.06714,69020.0,69019.0,0.024]
[1722087169211,0.0898872,69020.0,69019.0,0.024]
[1722087169438,0.678096,69020.0,69019.0,0.012]
[1722087169716,0.867867,69020.0,69019.0,0.018]
[1722087169888,0.388325,69020.0,69019.0,0.012]
[1722087170425,0.002,69017.0,69012.0,0.07512979]
[1722087171271,0.312027,69020.0,69012.0,0.07512979]
[1722087171475,0.312025,69020.0,69019.0,0.07512979]
[1722087171678,0.601796,69020.0,69019.0,0.07512979]
[1722087172671,0.62454381,69020.0,69019.0,0.07512979]
[1722087173522,0.47965881,69020.0,69019.0,0.07512979]
[1722087173721,0.18978781,69020.0,69019.0,0.07512979]
[1722087173990,0.08778781,69020.0,69019.0,0.07512979]
[1722087174185,0.23267281,69020.0,69019.0,0.07512979]
[1722087174388,0.33267281,69020.0,69019.0,0.08212979]
[1722087174690,0.12348781,69020.0,69019.0,0.08212979]
[1722087175032,0.12348781,69020.0,69019.0,0.08712979]
[1722087175237,0.10074,69020.0,69019.0,0.08712979]
[1722087175439,0.00074,69020.0,69019.0,0.08712979]
[1722087176849,0.06304,69020.0,69019.0,0.08712979]
[1722087177163,0.207925,69020.0,69019.0,0.08712979]
[1722087177362,0.16304,69020.0,69019.0,0.08712979]
[1722087178176,0.10074,69020.0,69019.0,0.08712979]
[1722087178379,0.00074,69020.0,69019.0,0.08712979]
[1722087178635,0.02348736,69020.0,69019.0,0.08712979]
[1722087178835,0.00074,69020.0,69019.0,0.08712979]
[1722087179457,0.00074,69020.0,69019.0,0.37621679]
[1722087179786,0.00074,69020.0,69019.0,0.95576679]
[1722087180416,0.00074,69020.0,69019.0,1.24554179]
[1722087180617,0.00074,69020.0,69019.0,0.94376679]
[1722087180819,0.00074,69020.0,69019.0,0.95776679]
[1722087181023,0.00074,69020.0,69019.0,0.97176679]
[1722087181965,0.00074,69020.0,69019.0,0.95776679]
[1722087182178,0.0234855,69020.0,69019.0,0.95776679]
[1722087182344,0.0234855,69020.0,69019.0,0.94376679]
[1722087182878,0.0234855,69020.0,69019.0,1.24754179]
[1722087183091,0.00074,69020.0,69019.0,1.24754179]
[1722087183623,0.00074,69020.0,69019.0,1.31362179]
[1722087183826,0.00074,69020.0,69019.0,1.60339679]
[1722087184196,0.00074,69020.0,69019.0,1.85339679]
[1722087184399,0.00074,69020.0,69019.0,1.83939679]
[1722087185221,0.00074,69020.0,69019.0,1.89990482]
[1722087185518,0.00074,69020.0,69019.0,1.82539679]
[1722087186273,0.00074,69020.0,69019.0,2.03201108]
[1722087186478,0.00074,69020.0,69019.0,1.97829679]
[1722087186656,0.00074,69020.0,69019.0,2.02709053]
[1722087186856,0.00074,69020.0,69019.0,2.04109053]
[1722087187019,0.00074,69020.0,69019.0,2.06680482]
[1722087187377,0.00074,69020.0,69019.0,0.98678608]
[1722087187502,0.00074,69020.0,69019.0,0.67129679]
[1722087187702,0.00074,69020.0,69019.0,1.25084679]
[1722087187703,0.02348385,69020.0,69019.0,1.25084679]
[1722087188157,0.02348385,69020.0,69019.0,1.00084679]
[1722087188460,0.02348385,69020.0,69019.0,0.40729679]
[1722087188670,0.02348385,69020.0,69019.0,0.34549679]
[1722087188862,0.02348385,69020.0,69019.0,0.31641679]
[1722087189223,0.02348385,69020.0,69019.0,0.60619179]
[1722087189907,0.02348385,69020.0,69019.0,0.59219179]
[1722087190111,0.02348385,69020.0,69019.0,0.63527179]
[1722087190317,0.02348385,69020.0,69019.0,0.34549679]
[1722087190490,0.02348385,69020.0,69019.0,0.35949679]
[1722087190691,0.02348385,69020.0,69019.0,0.34549679]
[1722087190913,0.02348385,69020.0,69019.0,0.63527179]
[1722087191293,0.02348385,69020.0,69019.0,0.35949679]
[1722087192405,0.02348385,69020.0,69019.0,0.10312979]
[1722087193008,0.46013985,69020.0,69019.0,0.10312979]
[1722087193208,0.24886885,69020.0,69019.0,0.10312979]
[1722087193416,0.10398385,69020.0,69019.0,0.08912979]
[1722087194003,0.10398385,69020.0,69019.0,0.10012979]
[1722087194163,0.24886885,69020.0,69019.0,0.07512979]
[1722087194365,0.24886885,69020.0,69005.0,0.15832979]
[1722087194366,0.002,69018.0,69005.0,0.07512979]
[1722087194571,0.002,69016.0,69005.0,0.07512979]
[1722087194774,0.0638,69019.0,69007.0,0.144912]
[1722087195192,0.0638,69019.0,69006.0,0.144914]
[1722087195395,0.0658,69013.0,69005.0,0.07512979]
[1722087195618,0.579,69013.0,69005.0,0.07512979]
[1722087195794,0.8688,69013.0,69005.0,0.07512979]
[1722087196191,0.1423,69013.0,69005.0,0.07512979]
[1722087196568,0.1423,69013.0,69012.0,0.08912979]
[1722087196788,0.0638,69013.0,69012.0,0.08512979]
[1722087197078,0.00074,69020.0,69019.0,0.144887]
[1722087197282,0.00074,69020.0,69019.0,0.22001679]
[1722087197422,0.00074,69020.0,69019.0,0.57668886]
[1722087198233,0.00074,69020.0,69019.0,0.87346386]
[1722087198633,0.00074,69020.0,69019.0,0.58079179]
[1722087198844,0.00074,69020.0,69019.0,0.08212979]
[1722087199248,0.00074,69020.0,69019.0,0.09112979]
[1722087199507,0.00074,69020.0,69019.0,0.38090479]
[1722087199641,0.00074,69020.0,69019.0,0.51679179]
[1722087199833,0.00074,69020.0,69019.0,0.52379179]
[1722087200049,0.00074,69020.0,69019.0,0.53779179]
[1722087200268,0.00074,69020.0,69019.0,0.24801679]
[1722087201178,0.00074,69020.0,69019.0,0.53779179]
[1722087201676,0.00074,69020.0,69019.0,0.24801679]
[1722087202258,0.02348546,69020.0,69019.0,0.24801679]
[1722087202645,0.00074,69020.0,69019.0,0.028]
[1722087202851,0.06454,69020.0,69019.0,0.028]
[1722087203052,0.06454,69020.0,69001.0,0.45077872]
[1722087203053,0.434782,69000.0,68999.0,0.25]
[1722087203251,0.88611716,69000.0,68999.0,0.25]
[1722087203454,0.25133516,69000.0,68999.0,0.25]
[1722087203669,0.00903789,69000.0,68999.0,0.25]
[1722087203870,0.1828,69011.0,68999.0,0.25]
[1722087204071,0.1828,69011.0,69010.0,0.07512979]
[1722087204278,0.19183518,69011.0,69010.0,0.07512979]
[1722087205543,0.19133518,69011.0,69010.0,0.07512979]
[1722087205941,0.21408591,69011.0,69010.0,0.07512979]
[1722087206606,0.21408591,69011.0,69010.0,0.07412979]
[1722087206768,0.2150859,69011.0,69010.0,0.07412979]
[1722087206971,0.64979791,69011.0,69010.0,0.07412979]
[1722087207191,0.65179791,69011.0,69010.0,0.07412979]
[1722087207388,0.36554411,69011.0,69010.0,0.07412979]
[1722087207806,0.65535211,69011.0,69010.0,0.07412979]
[1722087208216,0.36398991,69011.0,69010.0,0.07412979]
[1722087208846,0.3649899,69011.0,69010.0,0.07412979]
[1722087209219,0.3629899,69011.0,69010.0,0.07412979]
[1722087209420,0.3649899,69011.0,69010.0,0.07412979]
[1722087209629,0.65379791,69011.0,69010.0,0.07412979]
[1722087210003,0.21708591,69011.0,69010.0,0.07412979]
[1722087210225,0.19633518,69011.0,69010.0,0.07412979]
[1722087210434,0.34123918,69011.0,69010.0,0.07412979]
[1722087210586,0.63104718,69011.0,69010.0,0.07412979]
[1722087211239,0.19633518,69011.0,69010.0,0.07412979]
[1722087211744,0.11403518,69011.0,69010.0,0.07412979]
[1722087211989,0.25893918,69011.0,69010.0,0.07412979]
[1722087212246,0.11403518,69011.0,69010.0,0.07412979]
[1722087212494,0.15893918,69011.0,69010.0,0.07412979]
[1722087212727,0.01203518,69011.0,69010.0,0.07412979]
[1722087213184,0.003,69011.0,69010.0,0.07412979]
[1722087213405,0.003,69011.0,69010.0,0.50884879]
[1722087213619,0.02474942,69011.0,69010.0,0.50884879]
[1722087213858,0.00074,69020.0,69011.0,0.289808]
[1722087214040,0.00074,69020.0,69010.0,0.07412979]
[1722087214041,0.00074,69020.0,69019.0,0.07512979]
[1722087215257,0.00074,69020.0,69019.0,0.22001679]
[1722087215467,0.00074,69020.0,69019.0,1.08934179]
[1722087215658,0.00074,69020.0,69019.0,0.50979179]
[1722087215867,0.00074,69020.0,69019.0,0.79956679]
[1722087216262,0.00074,69020.0,69019.0,0.50979179]
[1722087216888,0.00074,69020.0,69019.0,0.80356679]
[1722087217105,0.00074,69020.0,69019.0,0.80656679]
[1722087217271,0.02348527,69020.0,69019.0,0.80656679]
[1722087217457,0.02348527,69020.0,69019.0,0.51679179]
[1722087219040,0.00074,69020.0,69019.0,0.22701679]
[1722087219239,0.00074,69020.0,69019.0,0.51679179]
[1722087219665,0.00074,69020.0,69019.0,0.22701679]
[1722087219988,0.00074,69020.0,69019.0,0.51679179]
[1722087220189,0.00074,69020.0,69019.0,0.76679179]
[1722087220381,0.00074,69020.0,69019.0,0.47701679]
[1722087220587,0.00074,69020.0,69019.0,0.257]
[1722087220588,0.06374,69020.0,69019.0,0.257]
[1722087220745,0.21765807,69020.0,69019.0,0.257]
[1722087220945,0.17277307,69020.0,69019.0,0.257]
[1722087221170,0.07277307,69020.0,69019.0,0.007]
[1722087221368,0.00977307,69020.0,69019.0,0.007]
[1722087221573,0.01177307,69020.0,69019.0,0.003]
[1722087221837,0.01177307,69020.0,69008.0,0.07512979]
[1722087221838,0.002,69019.0,69008.0,0.07512979]
[1722087222041,0.00374,69020.0,69018.0,0.07512979]
[1722087222222,0.0090335,69019.0,69018.0,0.07512979]
[1722087222777,0.0110335,69019.0,69018.0,0.07512979]
[1722087223127,0.0090335,69019.0,69018.0,0.07512979]
[1722087224520,0.0100335,69019.0,69018.0,0.07512979]
[1722087225069,0.0090335,69019.0,69018.0,0.07512979]
[1722087225211,0.0100335,69019.0,69018.0,0.07512979]
[1722087225404,0.0110335,69019.0,69018.0,0.07512979]
[1722087225807,0.03378058,69019.0,69018.0,0.07512979]
[1722087226293,0.03378071,69019.0,69018.0,0.07512979]
[1722087226772,0.03578071,69019.0,69018.0,0.07512979]
[1722087226983,0.03378071,69019.0,69018.0,0.07512979]
[1722087227185,0.01103363,69019.0,69018.0,0.07512979]
[1722087227605,0.01003363,69019.0,69018.0,0.07512979]
[1722087228094,0.01003363,69019.0,69018.0,0.07612979]
[1722087228303,0.00903363,69019.0,69018.0,0.07612979]
[1722087228507,0.00903363,69019.0,69018.0,0.07812979]
[1722087228980,0.00074,69020.0,69018.0,0.07812979]
[1722087228981,0.00074,69020.0,69019.0,0.434662]
[1722087229292,0.00074,69020.0,69019.0,0.144887]
[1722087229609,0.00074,69020.0,69018.0,0.47301879]
[1722087229812,0.00074,69020.0,69019.0,0.144887]
[1722087230015,0.00074,69020.0,69019.0,0.434662]
[1722087231239,0.00074,69020.0,69019.0,0.684662]
[1722087231912,0.00074,69020.0,69019.0,0.510502]
[1722087232059,0.00074,69020.0,69019.0,0.655389]
[1722087232793,0.00074,69020.0,69019.0,0.394887]
[1722087233166,0.00074,69020.0,69019.0,0.684662]
[1722087233491,0.00074,69020.0,69019.0,0.394887]
[1722087233789,0.00074,69020.0,69019.0,0.684662]
[1722087234300,0.00174,69020.0,69019.0,0.693662]
[1722087234727,0.00074,69020.0,69019.0,0.684662]
[1722087234903,0.00274,69020.0,69019.0,0.704662]
[1722087235113,0.00274,69020.0,69019.0,0.26]
[1722087235114,0.00174,69020.0,69019.0,0.26]
[1722087235540,0.00274,69020.0,69019.0,0.271]
[1722087235883,0.06394,69020.0,69019.0,0.271]
[1722087236082,0.06394,69020.0,69019.0,0.021]
[1722087237515,0.07297322,69020.0,69019.0,0.021]
[1722087237718,0.06394,69020.0,69019.0,0.021]
[1722087239553,0.00274,69020.0,69019.0,0.021]
[1722087239778,0.00274,69020.0,69019.0,0.165887]
[1722087240595,0.00274,69020.0,69019.0,0.021]
[1722087240932,0.01177309,69020.0,69019.0,0.165887]
[1722087241079,0.01177309,69020.0,69019.0,0.021]
[1722087241457,0.01177309,69020.0,69019.0,0.745437]
[1722087241660,0.00274,69020.0,69019.0,0.745437]
[1722087241862,0.00274,69020.0,69019.0,0.455662]
[1722087242405,0.00274,69020.0,69019.0,0.021]
[1722087242609,0.01177303,69020.0,69019.0,0.165887]
[1722087242820,0.01177303,69020.0,69019.0,0.455662]
[1722087243475,0.01177303,69020.0,69019.0,0.165887]
[1722087243682,0.01177303,69020.0,69019.0,0.021]
[1722087245693,0.01177307,69020.0,69019.0,0.021]
[1722087245919,0.36614407,69020.0,69019.0,0.021]
[1722087246095,0.6151096,69020.0,69019.0,0.021]
[1722087246296,1.68868141,69020.0,69019.0,0.021]
[1722087246560,1.60717045,69020.0,69019.0,0.021]
[1722087246735,1.58416864,69020.0,69019.0,0.021]
[1722087247153,1.29339764,69020.0,69019.0,0.011]
[1722087247308,1.29339764,69020.0,69010.0,0.000924]
[1722087247309,0.436712,69011.0,69010.0,0.000924]
[1722087247509,1.00197964,69011.0,69010.0,0.000924]
[1722087247928,0.27745964,69011.0,69010.0,0.000924]
[1722087248341,0.24743594,69011.0,69010.0,0.000924]
[1722087249023,0.17163502,69011.0,69010.0,0.000924]
[1722087249237,0.07463502,69011.0,69010.0,0.000924]
[1722087249440,0.17463502,69011.0,69010.0,0.000924]
[1722087249637,0.07463502,69011.0,69010.0,0.000924]
[1722087249840,0.01203502,69011.0,69010.0,0.725456]
[1722087250038,0.003,69011.0,69010.0,0.573943]
[1722087250298,0.003,69011.0,69010.0,0.079024]
[1722087250499,0.003,69011.0,69010.0,0.000924]
[1722087250703,0.0652,69011.0,69010.0,0.000924]
[1722087250901,0.07423373,69011.0,69010.0,0.000924]
[1722087251240,0.07123373,69011.0,69010.0,0.000924]
[1722087251639,0.07523373,69011.0,69010.0,0.007924]
[1722087252186,0.07523436,69011.0,69010.0,0.007924]
[1722087252526,0.15683436,69011.0,69010.0,0.007924]
[1722087252726,0.15883436,69011.0,69010.0,0.007924]
[1722087252932,0.15683436,69011.0,69010.0,0.007924]
[1722087253375,0.15383436,69011.0,69010.0,0.007924]
[1722087253752,0.15383436,69011.0,69010.0,0.012924]
[1722087253951,0.17658346,69011.0,69010.0,0.012924]
[1722087254205,0.01003436,69011.0,69010.0,0.012924]
[1722087254396,0.01003436,69011.0,69010.0,0.01582176]
[1722087254799,0.001,69011.0,69010.0,0.01582176]
[1722087255338,0.001,69011.0,69010.0,0.15783]
[1722087255482,0.001,69011.0,69010.0,0.45054058]
[1722087255685,0.001,69011.0,69010.0,0.94665358]
[1722087256614,0.001,69011.0,69010.0,0.943756]
[1722087257116,0.001,69011.0,69010.0,1.233569]
[1722087257301,0.001,69011.0,69010.0,1.371869]
[1722087258137,0.001,69011.0,69010.0,1.621869]
[1722087265706,0.02374573,69011.0,69010.0,1.621869]
[1722087266341,0.02374573,69011.0,69010.0,1.644869]
[1722087266771,0.02374573,69011.0,69010.0,1.934682]
[1722087267334,0.02374573,69011.0,69010.0,2.224495]
[1722087267835,0.02374573,69011.0,69010.0,2.212495]
[1722087267836,0.02274573,69011.0,69010.0,2.212495]
[1722087268235,0.02424573,69011.0,69010.0,2.337495]
[1722087268847,0.02424573,69011.0,69010.0,2.047682]
[1722087273769,0.02424573,69011.0,69010.0,1.697669]
[1722087274091,0.02424573,69011.0,69010.0,1.447669]
[1722087274314,0.02424573,69011.0,69010.0,1.347669]
[1722087274723,0.02424573,69011.0,69010.0,0.750456]
[1722087274866,0.02424573,69011.0,69010.0,1.385269]
[1722087275068,0.02424573,69011.0,69010.0,1.925082]
[1722087275317,0.002,69011.0,69010.0,2.025082]
[1722087276082,0.002,69011.0,69010.0,2.048082]
[1722087277126,0.002,69011.0,69010.0,2.490795]
[1722087277327,0.002,69011.0,69010.0,2.200982]
[1722087277712,0.002,69011.0,69010.0,2.490795]
[1722087280528,0.001,69011.0,69010.0,2.478795]
[1722087280727,0.001,69011.0,69010.0,2.492795]
[1722087281627,0.00074,69020.0,69019.0,1.303987]
[1722087281829,0.00074,69020.0,69019.0,1.610087]
[1722087282081,0.00074,69020.0,69019.0,1.951067]
[1722087282288,0.0788,69040.0,69028.0,1.014079]
[1722087282487,0.0788,69040.0,69028.0,1.39530879]
[1722087282488,0.0636,69038.0,69028.0,1.39530879]
[1722087283764,0.0636,69038.0,69028.0,1.40530879]
[1722087283964,0.005,69029.0,69028.0,1.41330879]
[1722087285183,0.00817,69047.0,69028.0,1.41330879]
[1722087285184,0.00895349,69071.0,69035.0,0.724264]
[1722087285390,0.0112,69079.0,69028.0,0.70966936]
[1722087285391,0.0112,69079.0,69078.0,0.61627]
[1722087285595,0.0112,69079.0,69078.0,1.401624]
[1722087285809,0.00816,69089.0,69088.0,0.723712]
[1722087286012,0.00816,69089.0,69088.0,1.036197]
[1722087286218,0.081,69108.0,69088.0,1.036197]
[1722087286219,0.00516,69100.0,69090.0,0.02908]
[1722087286418,0.00516,69100.0,69099.0,0.07512979]
[1722087287388,0.00516,69100.0,69099.0,0.457158]
[1722087287577,0.00516,69100.0,69099.0,0.746597]
[1722087288190,0.00516,69100.0,69099.0,0.829597]
[1722087288507,0.00441,69139.0,69129.0,0.144657]
[1722087288698,0.00441,69139.0,69129.0,0.07512979]
[1722087288841,0.00441,69139.0,69122.0,0.07512979]
[1722087288842,0.0636,69130.0,69114.0,0.07512979]
[1722087289038,0.0636,69130.0,69121.0,0.07512979]
[1722087289039,0.1636,69130.0,69121.0,0.07512979]
[1722087289240,0.1636,69130.0,69128.0,0.07512979]
[1722087289691,0.1636,69130.0,69121.0,0.07512979]
[1722087289851,0.1636,69130.0,69129.0,0.07512979]
[1722087290255,0.1003,69130.0,69129.0,0.07512979]
[1722087290665,0.1003,69130.0,69129.0,0.09812979]
[1722087290846,0.1003,69130.0,69116.0,0.02908]
[1722087291053,0.1003,69130.0,69125.0,0.07512979]
[1722087292299,0.1003,69130.0,69117.0,0.023]
[1722087292508,0.1003,69130.0,69109.0,0.45077872]
[1722087292509,0.1003,69130.0,69115.0,0.023]
[1722087292963,0.1003,69130.0,69125.0,0.01]
[1722087293171,0.0798,69129.0,69125.0,0.01]
[1722087293528,0.0798,69129.0,69117.0,0.07512979]
[1722087294968,0.0633,69127.0,69117.0,0.07512979]
[1722087295347,0.2063,69125.0,69102.0,0.07512979]
[1722087295554,0.2063,69125.0,69111.0,0.07512979]
[1722087295731,0.0633,69127.0,69111.0,0.07512979]
[1722087295938,0.14467,69123.0,69111.0,0.07512979]
[1722087296134,0.289326,69126.0,69111.0,0.07512979]
[1722087296374,0.14467,69123.0,69111.0,0.07512979]
[1722087296748,0.0633,69127.0,69111.0,0.07512979]
[1722087297376,0.14467,69123.0,69111.0,0.07512979]
[1722087297538,0.2063,69124.0,69112.0,0.07512979]
[1722087297739,0.144664,69126.0,69119.0,0.07512979]
[1722087297999,0.0633,69127.0,69119.0,0.07512979]
[1722087298698,0.144665,69125.0,69119.0,0.07512979]
[1722087298893,0.0633,69127.0,69119.0,0.07512979]
[1722087299309,0.14467,69123.0,69119.0,0.07512979]
[1722087299480,0.289331,69125.0,69119.0,0.07512979]
[1722087299481,0.0633,69127.0,69119.0,0.07512979]
[1722087299926,0.144664,69126.0,69119.0,0.07512979]
[1722087300126,0.0633,69127.0,69119.0,0.07512979]
[1722087300328,0.14467,69123.0,69119.0,0.07512979]
[1722087300551,0.289332,69125.0,69119.0,0.07512979]
[1722087300750,0.289335,69124.0,69119.0,0.07512979]
[1722087300968,0.289332,69125.0,69119.0,0.07512979]
[1722087301294,0.0633,69127.0,69112.0,0.07512979]
[1722087301295,0.289351,69120.0,69112.0,0.07512979]
[1722087301411,0.144684,69116.0,69112.0,0.07512979]
[1722087301611,0.495632,69125.0,69112.0,0.07512979]
[1722087301612,0.434049,69117.0,69112.0,0.07512979]
[1722087301864,0.289368,69116.0,69112.0,0.07512979]
[1722087302071,0.289361,69118.0,69112.0,0.07512979]
[1722087302225,0.14469,69113.0,69112.0,0.07512979]
[1722087302631,0.289363,69118.0,69112.0,0.07512979]
[1722087302632,0.289364,69118.0,69112.0,0.07512979]
[1722087302856,0.2063,69119.0,69112.0,0.07512979]
[1722087302857,0.14469,69113.0,69112.0,0.07512979]
[1722087303060,0.2063,69119.0,69102.0,0.07512979]
[1722087303233,0.434077,69112.0,69111.0,0.07512979]
[1722087303662,0.144692,69112.0,69111.0,0.07512979]
[1722087303864,0.2063,69120.0,69112.0,0.009]
[1722087304035,0.14469,69113.0,69112.0,0.018]
[1722087304254,0.577871,69113.0,69112.0,0.009]
[1722087304422,0.723462,69112.0,69111.0,0.07812979]
[1722087304644,1.012847,69112.0,69111.0,0.07812979]
[1722087304846,1.012847,69112.0,69111.0,0.07612979]
[1722087305294,1.012847,69112.0,69111.0,0.07512979]
[1722087305881,0.723557,69103.0,69102.0,0.07512979]
[1722087306471,0.434178,69096.0,69095.0,0.07512979]
[1722087306659,0.92993,69096.0,69095.0,0.07512979]
[1722087306857,0.144725,69097.0,69095.0,0.07512979]
[1722087307057,0.2063,69108.0,69095.0,0.07512979]
[1722087307279,0.2063,69108.0,69107.0,0.07512979]
[1722087307280,0.144701,69108.0,69107.0,0.07512979]
[1722087307484,0.723505,69108.0,69107.0,0.07512979]
[1722087307680,0.433182,69113.0,69107.0,0.07512979]
[1722087307681,0.1438,69113.0,69107.0,0.07512979]
[1722087308139,0.139701,69108.0,69107.0,0.07512979]
[1722087308487,0.429103,69108.0,69107.0,0.07512979]
[1722087308822,0.718505,69108.0,69107.0,0.07494999]
[1722087309046,0.429103,69108.0,69107.0,0.07494999]
[1722087309189,0.02271385,69116.0,69107.0,0.15284999]
[1722087309387,0.2709,69131.0,69115.0,0.07512979]
[1722087309663,0.723305,69127.0,69126.0,0.07512979]
[1722087309865,0.289373,69115.0,69107.0,0.07494999]
[1722087310080,0.144686,69115.0,69114.0,0.07512979]
[1722087310217,0.434058,69115.0,69114.0,0.07512979]
[1722087310417,0.579558,69115.0,69114.0,0.07512979]
[1722087310619,0.144701,69108.0,69107.0,0.07594999]
[1722087310861,0.289376,69114.0,69107.0,0.07494999]
[1722087311079,0.1455,69115.0,69107.0,0.07494999]
[1722087311281,0.1455,69115.0,69095.0,0.07512979]
[1722087311282,0.434095,69109.0,69108.0,0.07512979]
[1722087311483,0.723492,69109.0,69108.0,0.07512979]
[1722087311684,0.434095,69109.0,69108.0,0.07512979]
[1722087311890,0.144698,69109.0,69108.0,0.07512979]
[1722087312033,0.2063,69109.0,69108.0,0.07512979]
[1722087312647,0.1455,69115.0,69108.0,0.07512979]
[1722087312847,0.2063,69114.0,69108.0,0.07512979]
[1722087313147,0.2073,69114.0,69108.0,0.07512979]
[1722087313635,0.001,69114.0,69111.0,0.0769]
[1722087313865,0.001,69114.0,69113.0,0.434071]
[1722087314045,0.0003,69130.0,69113.0,0.434071]
[1722087314046,0.0003,69130.0,69128.0,0.144657]
[1722087314254,0.0003,69130.0,69129.0,0.07512979]
[1722087314378,0.0003,69130.0,69129.0,0.07412979]
[1722087315045,0.0003,69130.0,69129.0,0.21878679]
[1722087315321,0.0003,69130.0,69129.0,0.07412979]
[1722087315496,0.0003,69130.0,69129.0,0.53810079]
[1722087315698,0.0003,69130.0,69129.0,0.94765674]
[1722087316302,0.0003,69130.0,69129.0,1.23697074]
[1722087316511,0.0003,69130.0,69129.0,1.23597074]
[1722087316648,0.00112795,69133.0,69132.0,1.012553]
[1722087316848,0.00112795,69133.0,69132.0,1.324854]
[1722087317043,0.65263052,69163.0,69149.0,0.433845]
[1722087317044,0.44633052,69163.0,69149.0,0.433845]
[1722087317263,0.44633052,69163.0,69149.0,0.24274479]
[1722087317462,0.44633052,69163.0,69149.0,0.24174479]
[1722087317662,0.44633052,69163.0,69149.0,0.09712979]
[1722087317870,0.44633052,69163.0,69146.0,0.0779]
[1722087318155,0.00216427,69156.0,69155.0,0.433807]
[1722087318348,0.00216427,69156.0,69155.0,0.456807]
[1722087318572,0.00216427,69156.0,69155.0,0.167602]
[1722087318773,0.00216427,69156.0,69155.0,0.023]
[1722087318981,0.00216427,69156.0,69150.0,0.023]
[1722087319885,0.00216427,69156.0,69139.0,0.289271]
[1722087320087,0.00216427,69156.0,69149.0,0.21974379]
[1722087320287,0.00216427,69156.0,69155.0,0.003]
[1722087320783,0.0021013,69156.0,69149.0,0.07512979]
[1722087320984,0.0021013,69156.0,69150.0,0.023]
[1722087321391,0.02269721,69155.0,69150.0,0.023]
[1722087322597,0.02269721,69155.0,69151.0,0.144609]
[1722087322914,0.02269721,69155.0,69152.0,0.023]
[1722087323115,0.02269721,69155.0,69150.0,0.023]
[1722087323601,0.02269721,69155.0,69151.0,0.289221]
[1722087323815,0.02269721,69155.0,69152.0,0.023]
[1722087324102,0.02269721,69155.0,69152.0,0.009]
[1722087324243,0.02269721,69155.0,69153.0,0.023]
[1722087324444,0.02269721,69155.0,69149.0,0.07512979]
[1722087324648,0.02269721,69155.0,69150.0,0.016]
[1722087325032,0.02269721,69155.0,69150.0,0.007]
[1722087325245,0.02269721,69155.0,69152.0,0.011]
[1722087325450,0.02269721,69155.0,69153.0,0.05624479]
[1722087325702,0.02269721,69155.0,69153.0,0.09649421]
[1722087326837,0.02269721,69155.0,69153.0,0.08649421]
[1722087327633,0.02269721,69155.0,69153.0,0.23110021]
[1722087327772,0.02269721,69155.0,69154.0,0.06614092]
[1722087328120,0.02269721,69155.0,69154.0,0.78916292]
[1722087328275,0.02269721,69155.0,69154.0,0.83245722]
[1722087328478,0.02269721,69155.0,69154.0,1.26816622]
[1722087328703,0.0029413,69156.0,69155.0,0.80944722]
[1722087328916,0.0029413,69156.0,69155.0,0.54324222]
[1722087329107,0.0029413,69156.0,69155.0,0.83244722]
[1722087329672,0.0029413,69156.0,69155.0,0.25403722]
[1722087329948,0.0029413,69156.0,69155.0,0.10943522]
[1722087330157,0.0029413,69156.0,69155.0,0.98270679]
[1722087330469,0.0029413,69156.0,69155.0,0.10943522]
[1722087330667,0.0029413,69156.0,69155.0,0.25692851]
[1722087330869,0.0029413,69156.0,69155.0,0.55624222]
[1722087331031,0.0029413,69156.0,69155.0,1.28491179]
[1722087331233,0.0029413,69156.0,69155.0,1.35515375]
[1722087331434,0.0029413,69156.0,69155.0,0.89284104]
[1722087331634,0.0029413,69156.0,69155.0,0.61881418]
[1722087332019,0.0029413,69156.0,69155.0,1.19722418]
[1722087332227,0.0029413,69156.0,69155.0,1.48642918]
[1722087332420,0.0029413,69156.0,69155.0,0.94199178]
[1722087332686,0.0029413,69156.0,69155.0,0.75775961]
[1722087332863,0.0029413,69156.0,69155.0,1.04696461]
[1722087333065,0.0029413,69156.0,69155.0,0.75775961]
[1722087333269,0.0029413,69156.0,69155.0,0.02817814]
[1722087333478,0.0029413,69156.0,69155.0,0.32027431]
[1722087333782,0.0029413,69156.0,69155.0,0.21989854]
[1722087333983,0.0029413,69156.0,69155.0,0.55052882]
[1722087334185,0.0029413,69156.0,69155.0,1.27919839]
[1722087334405,0.0029413,69156.0,69155.0,1.17197339]
[1722087334604,0.0029413,69156.0,69155.0,1.54707839]
[1722087334987,0.0029413,69156.0,69155.0,1.54907839]
[1722087335189,0.0029413,69156.0,69155.0,1.54707839]
[1722087335955,0.0029413,69156.0,69155.0,1.29351266]
[1722087336174,0.0029413,69156.0,69155.0,1.24687339]
[1722087336374,0.0029413,69156.0,69155.0,1.23387339]
[1722087336715,0.0029413,69156.0,69155.0,0.82240882]
[1722087336833,0.0029413,69156.0,69155.0,1.20493832]
[1722087336834,0.018083,69156.0,69155.0,1.20493832]
[1722087337038,0.018083,69156.0,69155.0,1.27558765]
[1722087337268,0.018083,69156.0,69155.0,1.59279265]
[1722087337480,0.018083,69156.0,69155.0,1.59479265]
[1722087337903,0.018083,69156.0,69155.0,1.60376565]